bitfinex/quotes_BTCUSD_20220212
["timestamp","ask_amount","ask_price","bid_price","bid_amount"]
[1644705424107,0.00075488,42173.0,42161.0,0.0003]
[1644705424406,0.0004679,42169.0,42161.0,0.0003]
[1644705424607,0.0004679,42169.0,42162.0,0.330889]
[1644705424856,0.0004679,42169.0,42162.0,0.430889]
[1644705425060,0.00075488,42173.0,42163.0,0.1034]
[1644705425061,0.00045286,42173.0,42163.0,0.1034]
[1644705425259,0.00187419,42175.0,42164.0,0.500387]
[1644705425459,2.86e-06,42175.0,42168.0,0.05]
[1644705425659,2.86e-06,42175.0,42169.0,0.253759]
[1644705426058,2.86e-06,42175.0,42170.0,0.05927]
[1644705426264,0.01066306,42179.0,42171.0,0.384213]
[1644705426265,0.00254582,42179.0,42171.0,0.384213]
[1644705426462,1.94e-06,42182.0,42172.0,0.05]
[1644705426661,1.94e-06,42182.0,42173.0,0.700335]
[1644705426861,1.94e-06,42182.0,42173.0,0.903735]
[1644705427062,1.94e-06,42182.0,42175.0,0.328786]
[1644705427263,1.94e-06,42182.0,42176.0,0.0534]
[1644705427463,1.94e-06,42182.0,42177.0,0.200315]
[1644705427667,1.94e-06,42182.0,42179.0,0.5]
[1644705427862,1.94e-06,42182.0,42180.0,0.328744]
[1644705428717,0.00230194,42186.0,42182.0,0.200289]
[1644705429015,0.00230194,42186.0,42182.0,0.330843]
[1644705429215,0.00047297,42183.0,42182.0,0.330843]
[1644705429816,0.00047297,42183.0,42182.0,0.830843]
[1644705430222,0.00023054,42185.0,42182.0,0.830843]
[1644705430417,0.00047296,42185.0,42182.0,0.830843]
[1644705430616,0.0007035,42185.0,42182.0,0.830843]
[1644705430817,0.00210544,42186.0,42184.0,0.830843]
[1644705431018,0.00210544,42186.0,42184.0,0.5]
[1644705431220,0.00210544,42186.0,42185.0,0.330843]
[1644705431417,0.00210544,42186.0,42184.0,0.5]
[1644705431616,0.00210544,42186.0,42185.0,0.198131]
[1644705431817,0.00210544,42186.0,42185.0,0.830842]
[1644705432017,0.00210544,42186.0,42185.0,0.830843]
[1644705432257,0.00210544,42186.0,42185.0,0.5]
[1644705432459,0.00210544,42186.0,42185.0,0.830843]
[1644705432658,0.00210544,42186.0,42185.0,0.69813]
[1644705432862,0.00210544,42186.0,42185.0,0.5]
[1644705433058,0.00210544,42186.0,42185.0,0.69813]
[1644705433259,0.00057294,42188.0,42185.0,0.5]
[1644705433460,0.00057294,42188.0,42187.0,0.330843]
[1644705433759,0.0112,42189.0,42185.0,0.5]
[1644705433958,0.0112,42189.0,42186.0,0.198116]
[1644705434561,0.008,42189.0,42186.0,0.198116]
[1644705434763,0.0011,42191.0,42186.0,0.198116]
[1644705434764,0.00057293,42191.0,42186.0,0.198116]
[1644705434960,0.00249676,42196.0,42186.0,0.198116]
[1644705434961,0.16757393,42192.0,42188.0,0.330827]
[1644705435162,0.165371,42192.0,42188.0,0.384227]
[1644705435362,0.165371,42192.0,42188.0,0.484227]
[1644705435363,0.15837862,42192.0,42188.0,0.484227]
[1644705435561,0.15337862,42192.0,42188.0,0.484227]
[1644705435761,0.15137862,42192.0,42188.0,0.484227]
[1644705436011,0.14937862,42192.0,42188.0,0.484227]
[1644705436404,0.14037862,42192.0,42189.0,0.5]
[1644705436603,0.13337862,42192.0,42190.0,0.198095]
[1644705436804,0.11537862,42192.0,42190.0,0.257343]
[1644705437004,0.11037862,42192.0,42190.0,0.257343]
[1644705437203,0.10537862,42192.0,42190.0,0.257343]
[1644705437404,0.09637862,42192.0,42190.0,0.257343]
[1644705437806,0.09337862,42192.0,42190.0,0.257343]
[1644705438008,0.07617862,42192.0,42190.0,0.257343]
[1644705438205,0.06917862,42192.0,42190.0,0.257343]
[1644705438404,0.06517862,42192.0,42190.0,0.257343]
[1644705438806,0.06317862,42192.0,42190.0,0.257343]
[1644705439005,0.06217862,42192.0,42190.0,0.257343]
[1644705439406,0.05517862,42192.0,42190.0,0.257343]
[1644705439605,0.05317862,42192.0,42190.0,0.257343]
[1644705439854,0.04917862,42192.0,42190.0,0.257343]
[1644705440353,0.04917862,42192.0,42191.0,0.0534]
[1644705440555,0.04917862,42192.0,42191.0,0.3842]
[1644705441360,0.04617862,42192.0,42191.0,0.3842]
[1644705441853,0.04417862,42192.0,42191.0,0.3842]
[1644705442054,0.03417862,42192.0,42191.0,0.4842]
[1644705442354,0.02707862,42192.0,42191.0,0.48438811]
[1644705442552,0.02607862,42192.0,42191.0,0.48438811]
[1644705442753,0.03255432,42193.0,42192.0,1.17200638]
[1644705442953,0.03045432,42193.0,42192.0,1.17200638]
[1644705443156,0.02605432,42193.0,42192.0,1.17200638]
[1644705443610,0.02495432,42193.0,42192.0,1.17200638]
[1644705443810,0.02385432,42193.0,42192.0,1.17200638]
[1644705444112,0.02055432,42193.0,42192.0,1.17200638]
[1644705444510,0.01725432,42193.0,42192.0,1.17200638]
[1644705444712,0.01065432,42193.0,42192.0,1.17200638]
[1644705444909,0.00955432,42193.0,42192.0,1.16700638]
[1644705445311,0.00735432,42193.0,42192.0,1.16700638]
[1644705445718,0.00735432,42193.0,42192.0,1.26700638]
[1644705446010,0.00735432,42193.0,42192.0,1.16700638]
[1644705446410,0.00405432,42193.0,42192.0,1.26700638]
[1644705446610,0.00185432,42193.0,42192.0,1.26700638]
[1644705446810,0.00185432,42193.0,42192.0,1.26713022]
[1644705447011,0.00126397,42194.0,42192.0,1.26713022]
[1644705447258,3.294e-05,42194.0,42193.0,0.330783]
[1644705447462,0.00101556,42196.0,42194.0,0.059241]
[1644705447659,6.59e-06,42198.0,42195.0,0.015346]
[1644705448058,6.59e-06,42198.0,42196.0,0.330756]
[1644705448461,6.59e-06,42198.0,42196.0,0.430756]
[1644705449359,6.59e-06,42198.0,42196.0,0.330756]
[1644705451007,0.00023777,42198.0,42196.0,0.330756]
[1644705451207,6.59e-06,42198.0,42196.0,0.330756]
[1644705451404,0.00023777,42198.0,42196.0,0.330756]
[1644705451605,0.29231232,42206.0,42196.0,0.330756]
[1644705452002,1.263,42205.0,42197.0,0.0001262]
[1644705452201,0.28731232,42206.0,42197.0,0.0001262]
[1644705452602,0.28731232,42206.0,42197.0,0.3308692]
[1644705453408,0.3,42206.0,42197.0,0.4308692]
[1644705453606,0.3,42206.0,42197.0,0.3308692]
[1644705453807,1.563,42206.0,42197.0,0.3308692]
[1644705454106,1.263,42206.0,42197.0,0.3308692]
[1644705454306,1.263,42206.0,42197.0,0.4308692]
[1644705454509,0.00048845,42204.0,42197.0,0.3308692]
[1644705454956,0.00048845,42204.0,42197.0,0.4308692]
[1644705455355,0.3,42205.0,42198.0,0.00165549]
[1644705455556,0.26454402,42205.0,42199.0,0.01535]
[1644705455756,1.52754402,42205.0,42199.0,0.01035]
[1644705455959,1.263,42205.0,42199.0,0.01035]
[1644705456156,1.263,42205.0,42200.0,0.330719]
[1644705456157,0.25794573,42204.0,42200.0,0.330719]
[1644705456359,1.263,42205.0,42200.0,0.330719]
[1644705456956,1.263,42205.0,42200.0,0.32478893]
[1644705457358,1.263,42205.0,42201.0,0.01035]
[1644705457761,0.25800636,42204.0,42201.0,0.01035]
[1644705457959,1.263,42207.0,42201.0,0.01035]
[1644705458160,0.2662334,42206.0,42201.0,0.32478]
[1644705458362,1.263,42207.0,42201.0,0.32478]
[1644705458611,0.26567378,42206.0,42201.0,0.32478]
[1644705459207,0.2661627,42206.0,42201.0,0.32478]
[1644705459804,0.2611627,42206.0,42201.0,0.32478]
[1644705460106,1.5241627,42206.0,42201.0,0.00153571]
[1644705460607,1.5241627,42206.0,42202.0,0.33078]
[1644705460804,1.5241627,42206.0,42201.0,0.00153571]
[1644705461307,1.5241627,42206.0,42203.0,0.33078]
[1644705461507,1.52367378,42206.0,42203.0,0.33078]
[1644705461707,1.5241627,42206.0,42201.0,0.00153571]
[1644705462007,1.5241627,42206.0,42203.0,6.174e-05]
[1644705462459,1.5196627,42206.0,42203.0,6.174e-05]
[1644705462659,1.51917378,42206.0,42203.0,6.174e-05]
[1644705463059,1.51940592,42206.0,42203.0,6.174e-05]
[1644705464062,1.51917378,42206.0,42203.0,6.174e-05]
[1644705464262,1.51940592,42206.0,42203.0,6.174e-05]
[1644705464662,0.25992757,42205.0,42203.0,6.174e-05]
[1644705464863,0.26015971,42205.0,42203.0,6.174e-05]
[1644705465063,0.26015971,42205.0,42203.0,0.332379]
[1644705465263,0.26015971,42205.0,42203.0,0.001599]
[1644705465664,0.25515971,42205.0,42203.0,0.001599]
[1644705466106,0.00023214,42205.0,42203.0,0.001599]
[1644705466305,1.263,42206.0,42203.0,0.001599]
[1644705466512,0.00023214,42205.0,42203.0,0.001599]
[1644705466707,1.26348892,42206.0,42203.0,0.001599]
[1644705466907,0.00023214,42205.0,42203.0,0.001599]
[1644705467109,1.26348892,42206.0,42203.0,0.00153726]
[1644705467308,0.00023214,42205.0,42203.0,0.00153726]
[1644705467508,1.26323214,42206.0,42203.0,0.00153726]
[1644705467708,0.00023214,42205.0,42203.0,0.00153726]
[1644705467909,1.263,42206.0,42203.0,0.00183726]
[1644705468108,1.25823214,42206.0,42203.0,0.00183726]
[1644705468308,1.25846445,42206.0,42203.0,0.00183726]
[1644705469011,1.25823214,42206.0,42203.0,0.00183726]
[1644705469209,1.25846445,42206.0,42203.0,0.00183726]
[1644705469610,1.25846445,42206.0,42203.0,0.0003]
[1644705470056,1.25823214,42206.0,42203.0,0.0003]
[1644705470258,1.25846445,42206.0,42203.0,0.0003]
[1644705470757,1.16846445,42206.0,42203.0,0.0003]
[1644705471161,1.16823214,42206.0,42203.0,0.0003]
[1644705471563,1.16846445,42206.0,42203.0,0.0003]
[1644705471856,1.16846445,42206.0,42205.0,6.055e-05]
[1644705472057,1.16823214,42206.0,42205.0,0.00012112]
[1644705473161,0.00023231,42207.0,42205.0,0.00012112]
[1644705473359,0.00023231,42208.0,42205.0,0.00012112]
[1644705473607,0.00023231,42207.0,42205.0,0.00012112]
[1644705473805,0.00072122,42208.0,42205.0,0.00012112]
[1644705474007,0.00048891,42208.0,42205.0,0.00012112]
[1644705474607,0.21131282,42209.0,42205.0,0.00012112]
[1644705474807,0.20108019,42208.0,42205.0,0.00012112]
[1644705475007,0.20108019,42208.0,42206.0,0.33078]
[1644705475608,0.01072153,42209.0,42206.0,0.33078]
[1644705475806,0.01,42209.0,42206.0,0.33078]
[1644705476006,0.01021899,42209.0,42205.0,0.00166986]
[1644705476207,0.01045162,42209.0,42205.0,0.00166986]
[1644705476406,0.01021899,42209.0,42205.0,0.00166986]
[1644705476810,0.21129918,42209.0,42205.0,0.00154874]
[1644705477007,0.21108019,42209.0,42205.0,0.00154874]
[1644705477255,0.21180436,42209.0,42205.0,0.00154874]
[1644705477554,1.263,42208.0,42205.0,0.00154874]
[1644705477754,0.07336347,42198.0,42196.0,0.15]
[1644705477955,0.07336347,42198.0,42197.0,0.88418]
[1644705478155,0.07336347,42198.0,42197.0,0.93418]
[1644705478356,0.07336347,42198.0,42197.0,1.03418]
[1644705479157,0.07336347,42198.0,42197.0,1.08418]
[1644705480456,0.07336347,42198.0,42197.0,1.07418]
[1644705481304,0.07336347,42198.0,42197.0,1.03418]
[1644705483504,0.07336347,42198.0,42197.0,0.98418]
[1644705484104,0.07336347,42198.0,42197.0,0.93078]
[1644705484756,0.07336347,42198.0,42197.0,0.98078]
[1644705485155,0.07452356,42198.0,42197.0,0.98221839]
[1644705485357,0.07452356,42198.0,42197.0,0.93221839]
[1644705487262,0.06902356,42198.0,42197.0,0.93221839]
[1644705489616,0.06902356,42198.0,42197.0,0.93078]
[1644705491219,1.33202356,42198.0,42197.0,0.93078]
[1644705491417,0.06902356,42198.0,42197.0,0.93078]
[1644705492117,1.33202356,42198.0,42197.0,0.93078]
[1644705493751,1.33202356,42198.0,42197.0,0.43078]
[1644705494052,1.33077956,42198.0,42197.0,0.43078]
[1644705494251,1.33077956,42198.0,42197.0,0.42578]
[1644705495254,1.33077956,42198.0,42197.0,0.32578]
[1644705501157,1.33077956,42198.0,42197.0,0.330169]
[1644705501757,1.33077956,42198.0,42195.0,0.00193166]
[1644705501958,1.263,42196.0,42189.0,0.330233]
[1644705502157,1.263,42196.0,42190.0,0.5]
[1644705502760,0.3,42195.0,42190.0,0.5]
[1644705502959,1.263,42194.0,42190.0,0.5]
[1644705503359,1.263,42194.0,42183.0,0.26272681]
[1644705503639,1.263,42192.0,42184.0,0.5]
[1644705503840,1.263,42190.0,42185.0,0.330278]
[1644705504037,1.263,42190.0,42184.0,0.6]
[1644705504237,1.263,42190.0,42185.0,0.330277]
[1644705504438,1.263,42190.0,42185.0,0.430277]
[1644705504638,1.263,42190.0,42185.0,0.1]
[1644705504838,1.263,42190.0,42185.0,0.10049517]
[1644705505037,1.263,42188.0,42185.0,0.10049517]
[1644705505242,1.263,42188.0,42185.0,0.00049517]
[1644705505243,0.27232394,42187.0,42185.0,0.00049517]
[1644705505441,1.263,42186.0,42185.0,0.00049517]
[1644705505840,1.263,42186.0,42183.0,0.009484]
[1644705506139,1.263,42184.0,42183.0,0.00049519]
[1644705507144,1.263,42184.0,42177.0,0.5]
[1644705507145,1.3164,42184.0,42177.0,0.5]
[1644705507366,1.3164,42184.0,42177.0,0.4059952]
[1644705507367,1.263,42182.0,42177.0,0.4059952]
[1644705507566,1.263,42180.0,42177.0,0.4059952]
[1644705507768,0.0534,42179.0,42169.0,0.05]
[1644705507965,0.0534,42179.0,42171.0,0.5]
[1644705507966,1.263,42178.0,42171.0,0.5]
[1644705508165,1.263,42176.0,42171.0,0.5]
[1644705508568,0.330789,42175.0,42171.0,0.5]
[1644705508765,0.384189,42175.0,42171.0,0.5]
[1644705508965,0.0534,42175.0,42168.0,0.5]
[1644705509164,1.263,42174.0,42167.0,0.009486]
[1644705509366,1.263,42172.0,42167.0,0.009486]
[1644705509565,0.295,42171.0,42167.0,0.009486]
[1644705509765,1.3164,42172.0,42168.0,0.00049527]
[1644705510373,0.3,42171.0,42168.0,0.00049527]
[1644705510669,0.0534,42170.0,42162.0,0.03]
[1644705510865,1.263,42169.0,42167.0,0.00049527]
[1644705511109,1.59275135,42168.0,42167.0,0.00049527]
[1644705511910,1.59275135,42168.0,42162.0,0.03]
[1644705512710,0.05,42167.0,42162.0,0.03]
[1644705512912,0.0534,42166.0,42162.0,0.03]
[1644705513112,1.57876034,42165.0,42162.0,0.03]
[1644705513310,0.0534,42164.0,42162.0,0.03]
[1644705513511,1.5717953,42163.0,42162.0,0.03]
[1644705513812,1.6251953,42163.0,42162.0,0.03]
[1644705514110,1.3164,42163.0,42162.0,0.03]
[1644705515186,1.3164,42163.0,42150.0,0.05]
[1644705515386,0.79055223,42162.0,42146.0,0.05931]
[1644705516587,0.5,42162.0,42146.0,0.05931]
[1644705516788,0.0534,42161.0,42146.0,0.05931]
[1644705516988,1.263,42160.0,42146.0,0.05931]
[1644705517188,1.3164,42160.0,42146.0,0.05931]
[1644705518195,1.3164,42160.0,42142.0,0.5190718]
[1644705518394,1.3164,42160.0,42142.0,0.21862]
[1644705518611,1.3164,42160.0,42142.0,0.39983969]
[1644705519013,1.3164,42160.0,42142.0,0.1]
[1644705519211,1.3164,42160.0,42153.0,0.00027629]
[1644705520012,1.8164,42160.0,42153.0,0.00027629]
[1644705520214,1.8164,42160.0,42141.0,0.1735]
[1644705520414,1.263,42159.0,42154.0,0.00027628]
[1644705521515,1.263,42159.0,42141.0,0.2235]
[1644705521718,1.263,42159.0,42141.0,0.1735]
[1644705521919,1.263,42159.0,42151.0,0.005]
[1644705522366,2.49703929,42157.0,42151.0,0.005]
[1644705522562,1.263,42156.0,42151.0,0.005]
[1644705523363,1.3164,42156.0,42151.0,0.005]
[1644705524164,1.3164,42156.0,42151.0,0.00549276]
[1644705524567,1.263,42155.0,42151.0,0.00549276]
[1644705525164,1.263,42155.0,42151.0,0.005]
[1644705525364,1.263,42155.0,42142.0,0.46549276]
[1644705525564,1.263,42155.0,42143.0,0.330655]
[1644705525864,1.263,42155.0,42143.0,0.1]
[1644705526118,1.263,42155.0,42141.0,0.1735]
[1644705526318,1.263,42155.0,42141.0,0.1235]
[1644705526515,1.258,42155.0,42141.0,0.01]
[1644705527117,0.0534,42154.0,42141.0,0.01]
[1644705527616,1.258,42152.0,42141.0,0.01]
[1644705527816,0.0534,42151.0,42141.0,0.01]
[1644705528221,1.258,42150.0,42141.0,0.01]
[1644705528517,0.0534,42149.0,42141.0,0.01]
[1644705528721,1.258,42148.0,42141.0,0.01]
[1644705529017,0.0534,42147.0,42143.0,0.00049281]
[1644705529219,1.258,42146.0,42141.0,0.00549281]
[1644705529418,0.5,42149.0,42142.0,0.330672]
[1644705529419,1.258,42144.0,42142.0,0.330672]
[1644705529618,1.258,42144.0,42142.0,0.330679]
[1644705530058,1.258,42144.0,42141.0,0.00549281]
[1644705530459,1.258,42144.0,42142.0,0.33068]
[1644705530658,1.258,42144.0,42141.0,0.00549281]
[1644705530859,1.258,42144.0,42143.0,0.330671]
[1644705531060,1.258,42144.0,42141.0,0.00549281]
[1644705531759,0.26296849,42143.0,42141.0,0.00549281]
[1644705531961,1.258,42142.0,42141.0,0.00549281]
[1644705533362,1.3114,42142.0,42141.0,0.00549281]
[1644705534315,1.8114,42142.0,42141.0,0.00549281]
[1644705534518,1.80866275,42142.0,42141.0,0.00549281]
[1644705535418,1.80866275,42142.0,42134.0,0.00010986]
[1644705535419,1.27447842,42140.0,42134.0,0.00010986]
[1644705535615,1.258,42138.0,42133.0,0.00960486]
[1644705535817,1.258,42136.0,42133.0,0.00460486]
[1644705536016,0.0534,42135.0,42133.0,0.00460486]
[1644705536216,1.258,42134.0,42133.0,0.004495]
[1644705536420,1.3114,42134.0,42133.0,0.004495]
[1644705537116,1.3114,42134.0,42132.0,0.03010986]
[1644705537361,1.258,42133.0,42132.0,0.0157]
[1644705537560,1.3114,42133.0,42132.0,0.0157]
[1644705537960,0.05,42132.0,42131.0,0.01010986]
[1644705538163,0.05,42132.0,42123.0,0.05]
[1644705538164,0.40175478,42132.0,42123.0,0.05]
[1644705538362,1.258,42131.0,42122.0,0.00011667]
[1644705538563,0.35175478,42132.0,42129.0,0.00049237]
[1644705538565,1.3114,42130.0,42129.0,0.00049237]
[1644705539565,1.3114,42130.0,42124.0,0.00011667]
[1644705539763,1.3114,42130.0,42127.0,0.00049238]
[1644705539764,0.28258161,42129.0,42127.0,0.00049238]
[1644705540064,1.3114,42128.0,42127.0,0.00049238]
[1644705540664,1.3114,42128.0,42122.0,0.00011667]
[1644705540865,1.5325674,42127.0,42125.0,0.0004924]
[1644705541119,1.52663786,42126.0,42125.0,0.0004924]
[1644705541322,1.258,42126.0,42125.0,0.0004924]
[1644705541819,1.258,42126.0,42122.0,0.00011667]
[1644705542020,1.258,42126.0,42121.0,0.01]
[1644705542221,0.0534,42125.0,42121.0,0.01]
[1644705542421,1.258,42124.0,42121.0,0.01]
[1644705542720,1.26465984,42122.0,42121.0,0.01]
[1644705542921,1.31805984,42122.0,42121.0,0.01]
[1644705547583,1.31805984,42122.0,42112.0,0.00011667]
[1644705547584,0.05,42121.0,42112.0,0.00011667]
[1644705547781,1.64884884,42122.0,42111.0,0.01961567]
[1644705547782,1.258,42119.0,42111.0,0.01961567]
[1644705547981,0.0534,42118.0,42112.0,0.00011667]
[1644705548183,1.258,42116.0,42114.0,0.00048935]
[1644705548382,0.0534,42115.0,42114.0,0.00048935]
[1644705548616,1.3114,42115.0,42114.0,0.00048935]
[1644705549120,1.3114,42115.0,42112.0,0.00011667]
[1644705549319,1.258,42113.0,42112.0,0.00048936]
[1644705549517,1.258,42113.0,42112.0,0.00060603]
[1644705549716,1.258,42113.0,42112.0,0.00048936]
[1644705550316,1.258,42113.0,42111.0,0.01011667]
[1644705550519,1.258,42113.0,42111.0,0.01]
[1644705552370,1.52099514,42112.0,42111.0,0.01]
[1644705552570,1.258,42112.0,42111.0,0.01]
[1644705554674,1.26079571,42112.0,42111.0,0.01]
[1644705562965,1.76079571,42112.0,42111.0,0.01]
[1644705563817,1.76079571,42112.0,42111.0,1.032547]
[1644705564714,2.09158471,42112.0,42111.0,1.032547]
[1644705567874,2.19158471,42112.0,42111.0,1.032547]
[1644705568274,2.24498471,42112.0,42111.0,1.032547]
[1644705571018,2.34498471,42112.0,42111.0,1.032547]
[1644705571811,2.24498471,42112.0,42111.0,1.032547]
[1644705574767,2.34498471,42112.0,42111.0,0.317747]
[1644705575768,0.22109337,42110.0,42109.0,0.00048622]
[1644705575968,1.10528237,42110.0,42109.0,0.00048622]
[1644705576166,0.380789,42109.0,42102.0,0.02254808]
[1644705576370,1.3114,42108.0,42103.0,0.00011671]
[1644705576568,0.0534,42107.0,42102.0,0.02266479]
[1644705576769,1.258,42106.0,42102.0,0.02266479]
[1644705576969,1.758,42106.0,42102.0,0.01673106]
[1644705577170,1.258,42105.0,42102.0,0.01673106]
[1644705578170,1.258,42103.0,42102.0,0.01673106]
[1644705578519,1.258,42103.0,42102.0,0.01661435]
[1644705580014,1.588789,42103.0,42102.0,0.01661435]
[1644705580417,1.258,42103.0,42102.0,0.01661435]
[1644705581015,1.588789,42103.0,42102.0,0.01661435]
[1644705581817,1.642189,42103.0,42102.0,0.01661435]
[1644705582017,1.692189,42103.0,42102.0,0.01661435]
[1644705582269,1.742189,42103.0,42102.0,0.01661435]
[1644705584670,1.69426462,42103.0,42102.0,0.01661435]
[1644705584869,2.19426462,42103.0,42102.0,0.01661435]
[1644705586313,2.19426462,42103.0,42102.0,0.01451435]
[1644705587212,2.58426463,42103.0,42102.0,0.01451435]
[1644705589416,2.58426463,42103.0,42100.0,0.00048312]
[1644705589417,0.345299,42102.0,42100.0,0.00048312]
[1644705589618,0.884189,42101.0,42100.0,0.00048312]
[1644705589862,0.884189,42101.0,42100.0,3.12e-06]
[1644705589863,2.342189,42101.0,42100.0,3.12e-06]
[1644705590063,0.330789,42099.0,42091.0,0.01]
[1644705590265,1.638789,42099.0,42098.0,3.13e-06]
[1644705590462,1.792189,42099.0,42098.0,3.13e-06]
[1644705590663,2.292189,42099.0,42098.0,3.13e-06]
[1644705591264,2.292189,42099.0,42091.0,0.01]
[1644705591463,1.258,42096.0,42091.0,0.01]
[1644705591662,1.258,42094.0,42091.0,0.01]
[1644705591964,1.588789,42092.0,42091.0,0.01]
[1644705592161,1.642189,42092.0,42091.0,0.01]
[1644705593617,2.142189,42092.0,42091.0,0.01]
[1644705593917,1.8114,42092.0,42091.0,0.01]
[1644705595318,1.8614,42092.0,42091.0,0.01]
[1644705595616,1.80866275,42092.0,42091.0,0.01]
[1644705596119,1.85866275,42092.0,42091.0,0.01]
[1644705596720,1.90866275,42092.0,42091.0,0.01]
[1644705596916,1.80866275,42092.0,42091.0,0.01]
[1644705597769,1.90866275,42092.0,42091.0,0.01]
[1644705597970,1.80866275,42092.0,42091.0,0.01]
[1644705598169,2.18945175,42092.0,42091.0,0.01]
[1644705598371,1.80866275,42092.0,42091.0,0.01]
[1644705598772,1.90866275,42092.0,42091.0,0.01]
[1644705598971,1.85866275,42092.0,42091.0,0.01]
[1644705599170,2.18945175,42092.0,42091.0,0.01]
[1644705599370,2.13945175,42092.0,42091.0,0.01]
[1644705599571,2.14088968,42092.0,42091.0,0.01]
[1644705599771,1.91010068,42092.0,42091.0,0.01]
[1644705599970,1.86010068,42092.0,42091.0,0.01]
[1644705600173,2.14088968,42092.0,42091.0,0.01]
[1644705600373,1.91010068,42092.0,42091.0,0.01]
[1644705600770,2.31010068,42092.0,42091.0,0.01]
[1644705603013,2.31010068,42092.0,42091.0,0.005]
[1644705604970,2.31067707,42092.0,42091.0,0.005]
[1644705605870,2.36067707,42092.0,42091.0,0.005]
[1644705607271,2.41067707,42092.0,42091.0,0.005]
[1644705607873,2.91067707,42092.0,42091.0,0.005]
[1644705609524,2.90866275,42092.0,42091.0,0.005]
[1644705613166,2.85866275,42092.0,42091.0,0.005]
[1644705614969,3.35866275,42092.0,42091.0,0.005]
[1644705617416,3.30866275,42092.0,42091.0,0.005]
[1644705618917,3.63945175,42092.0,42091.0,1.7621]
[1644705621467,3.73945175,42092.0,42091.0,1.7621]
[1644705622370,4.23945175,42092.0,42091.0,1.7621]
[1644705623619,4.33945175,42092.0,42091.0,1.7621]
[1644705624421,4.33840091,42092.0,42091.0,1.7621]
[1644705627970,4.33829856,42092.0,42091.0,1.7621]
[1644705629371,4.83829856,42092.0,42091.0,1.7621]
[1644705636472,5.33829856,42092.0,42091.0,1.7621]
[1644705638720,5.33829856,42092.0,42091.0,1.76285076]
[1644705643676,5.83829856,42092.0,42091.0,1.76285076]
[1644705646124,5.83829856,42092.0,42091.0,1.22369481]
[1644705650972,6.33829856,42092.0,42091.0,1.22369481]
[1644705658212,6.83829856,42092.0,42091.0,1.22369481]
[1644705660313,6.73829856,42092.0,42091.0,1.22369481]
[1644705661419,6.83829856,42092.0,42091.0,1.22369481]
[1644705662421,5.58029856,42092.0,42091.0,1.22369481]
[1644705662618,6.78989856,42092.0,42091.0,1.22369481]
[1644705664871,6.84329856,42092.0,42091.0,1.22369481]
[1644705665272,7.34329856,42092.0,42091.0,1.22369481]
[1644705665472,7.34329856,42092.0,42091.0,1.22245281]
[1644705666074,7.34329856,42092.0,42091.0,1.21745281]
[1644705666877,6.08029856,42092.0,42091.0,1.21745281]
[1644705669921,7.34329856,42092.0,42091.0,1.21745281]
[1644705670723,6.08029856,42092.0,42091.0,1.21745281]
[1644705671326,7.34329856,42092.0,42091.0,1.21745281]
[1644705671737,6.08029856,42092.0,42091.0,1.21745281]
[1644705672371,6.58029856,42092.0,42091.0,1.21745281]
[1644705672974,7.84329856,42092.0,42091.0,1.21745281]
[1644705676123,7.84329856,42092.0,42091.0,0.67827665]
[1644705678023,7.84329856,42092.0,42091.0,0.69897665]
[1644705679222,7.83829856,42092.0,42091.0,0.69897665]
[1644705679623,8.33829856,42092.0,42091.0,0.69897665]
[1644705684128,8.50002601,42092.0,42091.0,0.69897665]
[1644705685126,8.33829856,42092.0,42091.0,0.69897665]
[1644705685927,8.50002619,42092.0,42091.0,0.69897665]
[1644705686731,9.00002619,42092.0,42091.0,0.69897665]
[1644705690081,8.50002619,42092.0,42091.0,0.69897665]
[1644705691123,9.00002619,42092.0,42091.0,0.69897665]
[1644705691723,9.00002619,42092.0,42091.0,0.69397665]
[1644705692522,8.99502619,42092.0,42091.0,0.69397665]
[1644705697278,8.99502619,42092.0,42091.0,0.68803714]
[1644705698927,9.49502619,42092.0,42091.0,0.68803714]
[1644705703975,8.99502619,42092.0,42091.0,0.68803714]
[1644705705177,9.49502619,42092.0,42091.0,0.68803714]
[1644705706131,9.49502619,42092.0,42091.0,0.14885053]
[1644705712179,9.99502619,42092.0,42091.0,0.14885053]
[1644705719377,10.49502619,42092.0,42091.0,0.14885053]
[1644705719978,9.99502619,42092.0,42091.0,0.14885053]
[1644705720778,10.49502619,42092.0,42091.0,0.14885053]
[1644705724335,0.04148756,42091.0,42089.0,0.00047747]
[1644705724535,0.04148756,42091.0,42084.0,0.00011657]
[1644705724536,1.263,42089.0,42084.0,0.00011657]
[1644705724782,1.263,42089.0,42083.0,0.00191017]
[1644705724783,0.330789,42085.0,42083.0,0.00191017]
[1644705724980,1.647189,42084.0,42083.0,0.00191017]
[1644705725381,1.747189,42084.0,42083.0,0.00191017]
[1644705725681,1.747189,42084.0,42082.0,0.00011657]
[1644705725682,1.84306412,42084.0,42082.0,0.00011657]
[1644705725881,1.593789,42083.0,42081.0,0.01047752]
[1644705726182,1.47816008,42082.0,42081.0,0.01047752]
[1644705726781,1.47816008,42082.0,42081.0,0.01]
[1644705730532,1.67816008,42082.0,42081.0,0.01]
[1644705731532,1.5164,42082.0,42081.0,0.01]
[1644705731735,1.67816643,42082.0,42081.0,0.01]
[1644705732134,1.67816643,42082.0,42081.0,0.0100601]
[1644705733183,2.17816643,42082.0,42081.0,0.0100601]
[1644705733582,2.50895543,42082.0,42081.0,0.0100601]
[1644705736129,1.28300363,42080.0,42079.0,0.00047753]
[1644705736331,1.76379263,42080.0,42079.0,0.00047753]
[1644705736528,1.593789,42078.0,42074.0,0.00012095]
[1644705736729,1.593789,42078.0,42077.0,0.00047754]
[1644705736730,1.743789,42078.0,42077.0,0.00047754]
[1644705737530,1.797189,42078.0,42077.0,0.00047754]
[1644705737830,1.593789,42077.0,42075.0,0.00047756]
[1644705738029,0.0534,42076.0,42075.0,0.00047756]
[1644705738231,0.384189,42076.0,42075.0,0.00047756]
[1644705738430,1.647189,42076.0,42075.0,0.00047756]
[1644705738830,1.647189,42076.0,42072.0,0.00012095]